bitfinex/quotes_ETHUSD_20250923
["timestamp","ask_amount","ask_price","bid_price","bid_amount"]
[1758644552106,0.00100001,4197.9,4197.8,29.2030378]
[1758644554424,0.00100001,4197.9,4197.8,29.6660378]
[1758644557925,0.02,4198.9,4198.1,3.792]
[1758644558128,0.02,4198.9,4198.4,2.38184043]
[1758644558330,0.02,4198.9,4198.8,2.38163284]
[1758644558622,0.02,4198.9,4198.8,20.93044916]
[1758644558828,0.4649,4198.9,4198.8,20.90663284]
[1758644559332,0.02,4198.9,4198.8,20.90663284]
[1758644559494,1e-08,4198.9,4198.8,22.71613364]
[1758644559695,1e-08,4199.0,4198.9,2.38157612]
[1758644559896,1e-08,4199.0,4198.9,2.40539188]
[1758644560396,1e-08,4199.0,4198.9,16.90539188]
[1758644560601,1e-08,4199.0,4198.9,17.32647612]
[1758644560801,1e-08,4199.0,4198.9,20.23231372]
[1758644566541,1e-08,4199.0,4198.9,0.4449]
[1758644566542,7.94795477,4199.0,4198.9,0.4449]
[1758644566704,7.94795477,4199.0,4197.1,0.02]
[1758644566705,9.70857591,4199.0,4198.5,0.616]
[1758644566905,7.94795476,4198.4,4198.3,0.616]
[1758644567120,8.08173254,4198.4,4198.3,17.893]
[1758644567321,8.76443254,4198.4,4198.3,17.893]
[1758644567522,8.76443254,4198.4,4198.3,20.27491649]
[1758644567723,0.81647778,4198.4,4198.3,20.27491649]
[1758644569160,0.81647778,4198.4,4198.3,16.88191649]
[1758644569344,0.81647778,4198.4,4198.3,20.90591649]
[1758644570360,0.81640375,4198.4,4198.3,20.90591649]
[1758644572964,0.81640375,4198.4,4198.3,16.88191649]
[1758644573165,1.6928396,4198.4,4198.3,14.5]
[1758644573333,4.29748781,4198.4,4198.3,18.524]
[1758644573528,4.32726105,4198.4,4198.3,18.524]
[1758644573846,8.98714697,4198.4,4198.3,18.524]
[1758644574052,8.76435851,4198.4,4198.3,18.524]
[1758644575740,8.76435851,4198.4,4198.3,14.5]
[1758644575943,8.98703313,4198.4,4198.3,14.5]
[1758644576163,8.76435851,4198.4,4198.3,14.5]
[1758644576355,10.50721991,4198.4,4198.3,14.5]
[1758644577335,12.88907966,4198.4,4198.3,14.5]
[1758644577538,10.50721991,4198.4,4198.3,14.5]
[1758644579158,15.88907966,4198.4,4198.3,14.5]
[1758644579454,19.91307966,4198.4,4197.8,4.024]
[1758644579655,7.94795476,4197.8,4197.0,2.06]
[1758644579975,7.1495376,4198.3,4197.9,2.38213811]
[1758644580174,7.1495376,4198.3,4197.6,2.38226224]
[1758644580175,0.61764314,4198.2,4198.0,4.024]
[1758644580334,0.81616848,4198.1,4197.9,4.024]
[1758644580534,0.46234655,4198.0,4197.9,6.40612934]
[1758644580730,0.4544,4198.1,4198.0,2.3820867]
[1758644580936,8.53580872,4198.1,4198.0,16.8820867]
[1758644581266,8.53580872,4198.1,4198.0,14.5]
[1758644581267,8.76410872,4198.1,4198.0,14.5]
[1758644581436,8.30970872,4198.1,4198.0,14.5]
[1758644581638,8.76410872,4198.1,4198.0,20.9070867]
[1758644582257,8.63065476,4198.1,4198.0,20.9070867]
[1758644582569,9.86535681,4198.1,4198.0,20.9070867]
[1758644582749,9.63705681,4198.1,4198.0,20.9070867]
[1758644583075,9.63705681,4198.1,4198.0,18.525]
[1758644583586,9.86535681,4198.1,4198.0,18.525]
[1758644584184,9.63705681,4198.1,4198.0,20.9070867]
[1758644584482,0.71636573,4198.3,4198.2,2.38197322]
[1758644584674,0.71636573,4198.3,4198.2,6.40697322]
[1758644584842,3.02977324,4198.4,4198.2,4.025]
[1758644585044,0.58774435,4198.3,4198.2,4.025]
[1758644585275,0.81604435,4198.3,4198.2,4.025]
[1758644585475,1.23797085,4198.3,4198.2,4.025]
[1758644585676,9.18592561,4198.3,4198.2,4.025]
[1758644585881,9.18592561,4198.3,4198.0,14.5]
[1758644586048,3.71247466,4198.2,4198.0,14.5]
[1758644586577,0.6827,4198.1,4198.0,14.5]
[1758644586741,0.6827,4198.1,4197.7,4.025]
[1758644586742,2.38213615,4198.0,4197.7,4.025]
[1758644586942,7.94795476,4197.8,4197.7,4.025]
[1758644587161,8.63065476,4197.8,4197.7,4.025]
[1758644587477,8.63065476,4197.8,4197.3,0.004]
[1758644587776,0.71247821,4197.7,4197.5,2.38236003]
[1758644587976,1.57852151,4197.7,4197.6,6.4073137]
[1758644588277,1.57852151,4197.7,4197.6,18.525]
[1758644588278,9.52647627,4197.7,4197.6,18.525]
[1758644588445,9.49669806,4197.7,4197.6,18.525]
[1758644588864,9.49669806,4197.7,4197.6,20.9073137]
[1758644589178,12.62998913,4197.7,4197.6,14.5]
[1758644589377,15.01224608,4197.7,4197.6,14.5]
[1758644589558,15.01224608,4197.7,4197.6,14.504]
[1758644589757,15.23440631,4197.7,4197.6,14.504]
[1758644590344,20.05140631,4197.7,4197.6,14.504]
[1758644590682,30.79712141,4197.7,4197.6,0.004]
[1758644590844,31.30902147,4197.7,4197.6,0.004]
[1758644591045,31.30908397,4197.7,4197.6,0.004]
[1758644591286,23.34257725,4197.7,4197.6,0.004]
[1758644591445,11.12238197,4197.4,4197.3,0.004]
[1758644591650,28.36962183,4197.4,4197.3,0.004]
[1758644591849,29.05672183,4197.4,4197.3,0.004]
[1758644592069,6.17448397,4197.3,4197.2,0.004]
[1758644592276,6.52999777,4197.3,4197.2,0.004]
[1758644592476,7.21709777,4197.3,4197.2,0.004]
[1758644592787,3.17465427,4197.0,4196.9,0.004]
[1758644592992,3.17465427,4197.0,4196.3,14.5]
[1758644592993,13.33083614,4196.6,4196.3,14.5]
[1758644593188,17.71134994,4196.6,4196.3,14.5]
[1758644593389,18.39844994,4196.6,4196.3,14.5]
[1758644593551,18.52075542,4196.6,4196.3,14.5]
[1758644593890,20.8482367,4196.6,4196.3,14.5]
[1758644594746,14.45256431,4196.6,4196.3,14.5]
[1758644595051,7.94795476,4197.0,4196.3,14.5]
[1758644595052,4.025,4196.9,4196.5,0.6895]
[1758644595250,0.16312028,4196.8,4196.6,3.0683794]
[1758644595490,10.94795476,4196.7,4196.6,7.0933794]
[1758644595907,10.94795476,4196.7,4196.6,6.4078794]
[1758644596050,0.13340785,4196.7,4196.6,4.7105]
[1758644596256,8.33347602,4197.3,4196.9,2.38267069]
[1758644596466,7.94795476,4197.0,4196.9,2.38267069]
[1758644596791,3.0,4197.2,4197.0,2.38265427]
[1758644596956,0.16316903,4197.1,4197.0,2.38265427]
[1758644597359,0.16316903,4197.1,4197.0,6.40865427]
[1758644598195,7.94795476,4198.1,4197.0,4.7115]
[1758644598398,7.94795476,4198.1,4197.2,2.38252263]
[1758644598399,7.94795476,4197.8,4197.2,2.38252263]
[1758644598582,3.0,4197.4,4197.3,6.37848397]
[1758644598906,0.02978034,4197.4,4197.3,21.56398397]
[1758644599074,3.1333964,4197.4,4197.3,18.7296]
[1758644599273,3.1632066,4197.4,4197.3,20.87848397]
[1758644599874,7.94795476,4197.8,4197.4,2.38242721]
[1758644600074,3.38556969,4197.7,4197.4,4.7115]
[1758644600274,0.1334218,4197.6,4197.4,4.7115]
[1758644600576,0.16320143,4197.5,4197.4,6.86031256]
[1758644601121,8.11115619,4197.5,4197.4,6.86031256]
[1758644601285,8.08137656,4197.5,4197.4,7.09391256]
[1758644601710,8.08137656,4197.5,4197.4,6.86031256]
[1758644602407,8.08137656,4197.5,4197.4,7.09391256]
[1758644602706,8.08137656,4197.5,4197.4,4.7115]
[1758644603028,8.08137656,4197.5,4197.4,4.026]
[1758644603226,8.30393669,4197.5,4197.4,4.026]
[1758644603794,8.30393669,4197.5,4197.4,6.40842721]
[1758644604320,8.30393669,4197.5,4197.4,4.026]
[1758644605026,8.30393669,4197.5,4197.4,6.40842721]
[1758644605313,8.30393669,4197.5,4197.4,4.026]
[1758644605520,5.38242721,4197.4,4197.3,14.5]
[1758644605768,6.42550914,4197.4,4197.3,14.5]
[1758644605922,6.42550914,4197.4,4196.8,4.026]
[1758644605923,2.38254074,4197.2,4196.8,4.026]
[1758644606260,2.38254074,4197.2,4196.2,0.2336]
[1758644606261,7.94795476,4196.9,4196.7,4.026]
[1758644606461,8.33372128,4196.8,4196.7,4.026]
[1758644606664,8.30393669,4196.8,4196.7,4.026]
[1758644606871,8.30393669,4196.8,4196.7,18.526]
[1758644607862,8.30393669,4196.8,4196.7,14.5]
[1758644608063,9.19858659,4196.8,4196.7,14.5]
[1758644609164,19.29445441,4196.8,4196.7,14.5]
[1758644609628,16.91168659,4196.8,4196.7,14.5]
[1758644610029,19.29445441,4196.8,4196.7,14.5]
[1758644611260,5.38287729,4196.7,4196.5,0.004]
[1758644611446,9.56163879,4196.6,4196.5,0.004]
[1758644611648,11.91473416,4196.6,4196.5,0.004]
[1758644611846,12.36273416,4196.6,4196.5,0.004]
[1758644613683,12.60183416,4196.6,4196.5,0.004]
[1758644615352,13.39383416,4196.6,4196.5,0.004]
[1758644615950,12.70673416,4196.6,4196.5,0.004]
[1758644616362,13.21980064,4196.6,4196.5,0.004]
[1758644616592,20.40980064,4196.6,4196.5,0.004]
[1758644617906,3.0,4196.5,4196.2,14.5]
[1758644618068,2.38367194,4195.3,4194.8,0.2336]
[1758644618267,11.33373264,4195.2,4194.8,0.2336]
[1758644618481,17.71361327,4195.2,4195.1,14.52]
[1758644618680,18.35617554,4195.2,4195.1,14.52]
[1758644619292,19.04327554,4195.2,4195.1,14.52]
[1758644619469,18.35617554,4195.2,4195.1,14.52]
[1758644619796,19.04327554,4195.2,4195.1,14.52]
[1758644620153,18.35617554,4195.2,4195.1,14.52]
[1758644621978,19.14817554,4195.2,4195.1,14.52]
[1758644622202,19.84627554,4195.2,4195.1,14.52]
[1758644622773,19.84627554,4195.2,4195.1,0.02]
[1758644623814,27.03627554,4195.2,4195.1,0.02]
[1758644624175,27.54610408,4195.2,4195.1,0.02]
[1758644624484,27.40887609,4195.2,4195.1,0.02]
[1758644624799,29.02856228,4195.2,4195.1,0.02]
[1758644625000,29.53938003,4195.2,4195.1,0.02]
[1758644625515,29.02856228,4195.2,4195.1,0.02]
[1758644626694,28.33046228,4195.2,4195.1,0.02]
[1758644626889,27.95670293,4195.2,4195.1,0.02]
[1758644627631,27.95670293,4195.2,4195.1,0.024]
[1758644630714,18.0683854,4195.2,4195.1,0.6999]
[1758644630916,20.45206198,4195.2,4195.1,0.6999]
[1758644631103,20.45206198,4195.2,4195.1,0.024]
[1758644634597,10.54482313,4195.2,4195.1,14.76]
[1758644634808,10.54482313,4195.2,4195.1,17.5836334]
[1758644634809,0.35482313,4195.2,4195.1,17.5836334]
[1758644635241,0.35482313,4195.2,4195.1,15.1999]
[1758644635393,0.35482313,4195.2,4195.1,17.5836334]
[1758644636860,0.35521229,4195.2,4195.1,17.5836334]
[1758644640563,0.35521229,4195.2,4195.1,15.1999]
[1758644640859,0.35521229,4195.2,4195.1,17.5836334]
[1758644642759,0.35521229,4195.2,4195.1,19.98308138]
[1758644642990,0.13305867,4195.2,4195.1,24.01008138]
[1758644643359,0.02978956,4196.1,4195.4,2.38352295]
[1758644643554,0.02978956,4196.1,4196.0,2.38322211]
[1758644643754,0.40445587,4196.9,4195.9,4.027]
[1758644643981,4.38320648,4196.8,4196.3,2.38300535]
[1758644644198,3.38599178,4196.7,4196.4,17.55889171]
[1758644644356,7.38320648,4196.6,4196.5,0.4399]
[1758644644561,0.97485765,4196.9,4196.6,0.6759]
[1758644644803,4.41302901,4196.8,4196.6,0.6759]
[1758644645006,3.35624442,4196.7,4196.6,0.236]
[1758644645162,0.35624442,4196.7,4196.6,0.4399]
[1758644645358,0.38602972,4196.7,4196.6,0.4399]
[1758644645703,3.38602972,4196.7,4196.6,0.4399]
[1758644645898,3.38602972,4196.7,4196.6,0.6759]
[1758644650344,3.38602972,4196.7,4196.4,14.5]
[1758644650523,0.35624442,4196.6,4196.4,14.5]
[1758644650839,0.38603114,4196.5,4196.4,15.1759]
[1758644651046,0.16337953,4196.5,4196.4,15.1759]
[1758644651416,0.13359281,4196.5,4196.4,17.55889494]
[1758644651936,0.16337953,4196.5,4196.4,15.1759]
[1758644652351,0.13359281,4196.5,4196.4,17.55889494]
[1758644654144,0.13359281,4196.5,4196.4,15.1759]
[1758644654639,0.13359281,4196.5,4196.4,14.5]
[1758644655045,0.13359281,4196.5,4196.4,15.2026]
[1758644656347,0.13323504,4196.5,4196.4,15.2026]
[1758644657058,0.792,4196.4,4195.1,0.024]
[1758644657199,3.0,4195.9,4195.3,2.62871119]
[1758644657394,9.56764095,4195.6,4195.1,0.024]
[1758644657633,7.18805181,4195.5,4195.4,14.5]
[1758644657821,10.23076412,4195.5,4195.4,14.5]
[1758644658023,12.70547739,4195.5,4195.4,14.5]
[1758644659322,12.70547739,4195.5,4195.1,0.024]
[1758644659323,0.792,4195.4,4195.1,0.024]
[1758644659499,9.56764095,4195.2,4195.1,0.024]
[1758644659831,9.92296666,4195.2,4195.1,14.524]
[1758644661803,12.30664324,4195.2,4195.1,14.524]
[1758644662016,12.36580426,4195.2,4195.1,14.524]
[1758644662663,0.13325799,4195.2,4195.1,17.6103334]
[1758644662821,3.0,4195.5,4195.3,2.38360986]
[1758644663021,0.13338902,4195.4,4195.3,2.38360986]
[1758644663424,3.0,4195.6,4195.2,4.025]
[1758644663425,0.02979311,4195.6,4195.2,4.025]
[1758644663747,3.0,4195.7,4195.6,2.38340956]
[1758644664048,0.38562429,4195.7,4195.6,0.7026]
[1758644664348,0.38562429,4195.7,4195.6,17.58604932]
[1758644664850,0.35583189,4195.7,4195.6,17.58604932]
[1758644666453,0.13343918,4195.7,4195.6,17.58604932]
[1758644667862,3.02978956,4196.1,4196.0,2.38322211]
[1758644668162,3.38598162,4196.1,4196.0,2.38322211]
[1758644668328,3.38598162,4196.1,4196.0,2.62832211]
[1758644668655,0.38598162,4196.1,4196.0,17.58582211]
[1758644668827,0.13357202,4196.1,4196.0,17.58582211]
[1758644669232,0.3562509,4196.1,4196.0,17.58582211]
[1758644669857,0.22267888,4196.1,4196.0,15.2026]
[1758644670222,0.22267888,4196.1,4196.0,14.7451]
[1758644670423,0.22267888,4196.1,4196.0,14.5]
[1758644671024,0.22267888,4196.1,4196.0,16.88322211]
[1758644671220,0.22267888,4196.1,4196.0,14.5]
[1758644671956,4.24767888,4196.1,4196.0,14.5]
[1758644673073,4.24780958,4196.1,4196.0,14.5]
[1758644674172,0.22280958,4196.1,4196.0,14.5]
[1758644674351,0.22280958,4196.1,4196.0,14.7451]
[1758644674872,0.22280958,4196.1,4196.0,17.58582211]
[1758644679583,7.41280958,4196.1,4196.0,17.58582211]
[1758644681278,7.41280958,4196.1,4196.0,16.88322211]
[1758644683620,7.41280958,4196.1,4196.0,16.88722211]
[1758644683916,7.41380958,4196.1,4196.0,16.88722211]
[1758644684720,7.41380958,4196.1,4196.0,17.56462211]
[1758644685117,7.191,4196.1,4196.0,19.96191594]
[1758644686307,7.191,4196.1,4196.0,16.88722211]
[1758644686919,11.455,4196.1,4196.0,14.504]
[1758644687150,12.14668217,4196.1,4196.0,14.504]
[1758644687522,7.41398217,4196.1,4196.0,14.504]
[1758644687697,11.43798217,4196.1,4196.0,14.504]
[1758644688106,13.44910008,4196.1,4196.0,14.504]
[1758644688741,14.15780008,4196.1,4196.0,14.504]
[1758644689748,13.44910008,4196.1,4196.0,14.504]
[1758644691714,13.22611791,4196.1,4196.0,14.504]
[1758644691916,13.44934473,4196.1,4196.0,14.504]
[1758644692215,14.15804473,4196.1,4196.0,14.504]
[1758644693243,29.17924643,4196.1,4196.0,0.004]
[1758644693445,28.81218837,4196.1,4196.0,0.004]
[1758644694154,29.15682518,4196.1,4196.0,0.004]
[1758644694925,29.53054661,4196.1,4196.0,0.004]
[1758644695260,28.86374448,4196.1,4196.0,0.004]
[1758644695657,31.2469098,4196.1,4196.0,0.004]
[1758644696673,30.87322912,4196.1,4196.0,0.004]
[1758644698754,10.92874895,4196.1,4196.0,0.004]
[1758644699068,10.41422682,4196.1,4196.0,0.6814]
[1758644699838,10.41422682,4196.1,4196.0,3.06462211]
[1758644700483,3.22422682,4196.1,4196.0,3.06462211]
[1758644700656,3.25401638,4196.1,4196.0,3.06462211]
[1758644701041,3.25401638,4196.1,4196.0,17.56462211]
[1758644701270,0.22422682,4196.1,4196.0,19.55941736]
[1758644701475,0.001,4196.1,4196.0,19.55941736]
[1758644703582,0.001,4196.1,4196.0,23.58241736]
[1758644714897,0.001,4196.1,4196.0,18.88201736]
[1758644715064,0.001,4196.1,4196.0,23.14611736]
[1758644715268,0.001,4196.1,4196.0,23.59721736]
[1758644717564,0.001,4196.1,4196.0,31.5617143]
[1758644718792,0.001,4196.1,4196.0,23.59721736]
[1758644721140,1e-08,4196.6,4196.5,2.38293816]
[1758644721299,1e-08,4196.6,4196.5,14.3684351]
[1758644721504,1e-08,4196.6,4196.5,15.0616351]
[1758644721739,1e-08,4196.6,4196.5,29.5616351]
[1758644723933,1e-08,4196.6,4196.5,21.59713816]
[1758644724136,1e-08,4196.6,4196.5,21.33605238]
[1758644725409,1e-08,4196.6,4196.5,17.31505238]
[1758644725626,1e-08,4196.6,4196.5,21.33605238]
[1758644727524,1e-08,4196.6,4196.5,29.99374932]
[1758644727710,1e-08,4196.6,4196.5,32.99374932]
[1758644728139,1e-08,4196.6,4196.5,33.78574932]
[1758644735122,1e-08,4196.6,4196.5,33.88125198]
[1758644735330,0.001,4197.0,4196.9,5.38271104]
[1758644735538,0.001,4197.0,4196.9,11.39750629]
[1758644735711,0.001,4197.0,4196.9,12.88270629]
[1758644735907,0.001,4197.0,4196.9,27.38270629]
[1758644736104,0.001,4197.0,4196.9,28.06050629]
[1758644738035,0.2345,4198.4,4198.3,2.38191649]
[1758644738239,0.2345,4198.4,4198.3,6.40091649]
[1758644738421,0.6778,4198.4,4198.3,6.40091649]
[1758644738617,0.6778,4198.4,4198.3,20.90091649]
[1758644740545,0.2345,4198.4,4198.3,23.34375409]
[1758644741039,0.6778,4198.4,4198.3,23.34375409]
[1758644742162,0.6778,4198.4,4198.3,20.89991649]
[1758644745673,0.2575,4198.9,4198.4,2.38185975]
[1758644745819,0.6977,4198.8,4198.7,2.38168957]
[1758644746165,0.6977,4198.8,4198.7,6.39968957]
[1758644746362,0.6977,4198.8,4198.7,20.89968957]
[1758644750049,0.6977,4198.8,4198.7,14.5]
[1758644750225,1.94616715,4198.8,4198.7,14.5]
[1758644750964,4.32780623,4198.8,4198.2,4.017]
[1758644751136,0.94997568,4198.7,4198.2,4.017]
[1758644751336,0.92020457,4198.6,4198.3,14.5]
[1758644751548,1.14757093,4198.5,4198.3,14.5]
[1758644751863,0.92020457,4198.4,4198.3,14.5]
[1758644752620,10.46213036,4198.4,4198.3,14.5]
[1758644753333,12.84399011,4198.4,4198.3,14.5]
[1758644753561,10.46213036,4198.4,4198.3,14.5]
[1758644753757,11.52810278,4198.4,4198.3,14.5]
[1758644753960,1.98617699,4198.4,4198.3,14.5]
[1758644754145,0.94997781,4198.4,4198.3,14.5]
[1758644755121,0.92020457,4198.4,4198.3,14.5]
[1758644755322,0.02,4198.9,4198.3,14.5]
[1758644755523,0.02,4198.9,4198.7,2.38168957]
[1758644755722,0.02,4198.9,4198.8,6.39863284]
[1758644755956,0.02,4198.9,4198.8,20.89863284]
[1758644756391,0.021,4198.9,4198.8,18.517]
[1758644756592,0.021,4198.9,4198.8,20.89863284]
[1758644757327,0.24397862,4198.9,4198.8,20.89863284]
[1758644758356,0.24397862,4198.9,4198.8,18.517]
[1758644759473,0.24397862,4198.9,4198.8,20.89863284]
[1758644759968,0.24397862,4198.9,4198.8,18.517]
[1758644761174,0.24397862,4198.9,4198.8,20.89863284]
[1758644761559,0.021,4198.9,4198.8,20.89863284]
[1758644761871,0.021,4198.9,4198.8,21.56983284]
[1758644762668,0.021,4198.9,4198.8,21.13953284]
[1758644762882,0.021,4198.9,4198.8,20.89863284]
[1758644763387,0.021,4198.9,4198.8,21.13953284]
[1758644764103,0.021,4198.9,4198.8,23.9649905]
[1758644766697,0.021,4198.9,4198.8,19.2767905]
[1758644766888,0.021,4198.9,4198.8,20.89763284]
[1758644767199,0.021,4198.9,4198.8,21.56883284]
[1758644768161,0.021,4198.9,4198.8,20.89763284]
[1758644769360,0.021,4198.9,4198.6,4.44174379]
[1758644769361,0.021,4198.9,4198.6,2.38170658]
[1758644769574,0.6977,4198.8,4198.2,2.38192995]
[1758644769764,0.46036637,4198.7,4198.4,2.38185302]
[1758644769992,0.2375,4198.7,4198.5,18.516]
[1758644770166,0.6977,4198.6,4198.5,20.89779828]
[1758644770367,0.6977,4198.6,4198.5,18.516]
[1758644770567,0.6977,4198.6,4198.5,20.89780302]
[1758644770763,0.6977,4198.6,4198.5,18.516]
[1758644771384,0.6977,4198.6,4198.5,20.89780302]
[1758644771596,0.6977,4198.6,4198.5,18.516]
[1758644772580,0.6977,4198.6,4198.5,14.5]
[1758644772790,0.6871,4198.6,4198.5,14.5]
[1758644773008,1.31351482,4198.6,4197.5,0.004]
[1758644773298,2.38187269,4198.4,4197.6,6.39826095]
[1758644773478,0.93972998,4198.3,4197.6,6.39826095]
[1758644773678,0.22285603,4198.2,4197.6,6.39826095]
[1758644773890,0.02977537,4198.1,4197.6,4.016]
[1758644774092,0.909947,4198.0,4197.6,4.016]
[1758644774289,2.38221034,4197.8,4197.5,14.504]
[1758644774489,0.93972521,4197.7,4197.5,14.504]
[1758644774691,0.6871,4197.6,4197.5,14.504]
[1758644774906,6.60213669,4197.6,4197.5,14.504]
[1758644775111,6.60213669,4197.6,4197.5,0.004]
[1758644775620,4.21982299,4197.6,4197.5,0.004]
[1758644775932,4.44185798,4198.5,4197.7,2.38225511]
[1758644776091,4.44185798,4198.5,4197.5,2.38637045]
[1758644776092,10.33741447,4198.4,4197.5,4.02]
[1758644776292,0.90976604,4198.3,4197.5,4.02]
[1758644776526,5.382089,4198.0,4197.6,14.5]
[1758644776848,0.93954283,4197.9,4197.6,14.5]
[1758644777023,1.30372032,4197.8,4197.6,14.5]
[1758644777322,0.93954425,4197.7,4197.6,14.5]
[1758644778126,6.3218012,4197.7,4197.6,14.5]
[1758644778332,6.29202299,4197.7,4197.6,14.5]
[1758644778648,13.48202299,4197.7,4197.6,14.5]
[1758644778800,15.10782967,4197.7,4197.6,14.5]
[1758644778995,3.0,4197.6,4197.5,0.004]
[1758644779511,3.0,4197.6,4197.5,3.05417045]
[1758644779986,7.19,4197.7,4197.6,2.3823137]
[1758644780189,4.016,4198.4,4197.8,2.38216468]
[1758644780385,4.69403329,4198.3,4197.8,2.38216468]
[1758644780616,0.22240187,4198.2,4197.8,2.38216468]
[1758644780829,0.02977537,4198.1,4197.9,2.38213292]
[1758644780986,0.02977537,4198.1,4198.0,14.5]
[1758644781190,4.47163142,4198.3,4198.0,14.5]
[1758644781402,0.22238556,4198.2,4198.0,14.5]
[1758644781602,4.47163142,4198.3,4198.0,14.5]
[1758644782025,1.47163142,4198.3,4198.0,14.5]
[1758644783229,0.02977395,4198.3,4198.0,14.5]
[1758644783633,0.02977395,4198.3,4198.0,16.88208237]
[1758644784439,0.02977395,4198.3,4198.1,2.3820178]
[1758644784652,0.02977324,4198.4,4198.1,2.3820178]
[1758644784824,0.22235285,4198.3,4198.0,16.88207343]
[1758644785025,0.02977466,4198.2,4198.0,17.10737343]
[1758644785228,0.25212608,4198.4,4198.0,14.7253]
[1758644785429,0.22235284,4198.3,4198.0,14.7253]
[1758644785725,0.02977466,4198.2,4198.0,17.10737954]
[1758644785942,0.25211289,4198.4,4198.0,17.10737954]
[1758644786158,0.02977324,4198.4,4198.0,17.10737954]
[1758644786936,0.02977324,4198.4,4198.0,14.7253]
[1758644787135,3.90943473,4198.3,4198.0,14.5]
[1758644787357,2.38202996,4198.1,4198.0,14.5]
[1758644787569,0.48677466,4198.2,4198.0,14.5]
[1758644787930,0.02977466,4198.2,4198.0,16.88206605]
[1758644788326,0.02977466,4198.2,4198.0,14.5]
[1758644789053,0.02977466,4198.2,4198.0,16.88207834]
[1758644789250,7.19,4198.1,4198.0,16.88207834]
[1758644789561,7.19,4198.2,4198.1,2.38202996]
[1758644789714,3.0,4198.7,4198.5,2.3817918]
[1758644789914,0.02977111,4198.7,4198.5,2.6070918]
[1758644790452,0.02977111,4198.7,4198.5,2.3817918]
[1758644790652,3.0507697,4198.9,4198.5,2.3817918]
[1758644790853,0.22233374,4198.8,4198.5,2.3817918]
[1758644791057,0.25210485,4198.7,4198.5,2.3817918]
[1758644791350,3.0507697,4198.9,4198.5,0.2253]
[1758644791557,0.22234173,4198.8,4198.5,2.60708353]
[1758644791754,0.25211284,4198.7,4198.5,2.60708353]
[1758644791957,3.0507697,4198.9,4198.6,2.38174629]
[1758644792144,0.22234168,4198.8,4198.6,2.38174629]
[1758644792324,0.22234168,4198.7,4198.6,2.38174629]
[1758644792524,0.22234168,4198.7,4198.6,2.60704629]
[1758644792758,0.22334168,4198.7,4198.6,2.60704629]
[1758644793261,0.22334168,4198.7,4198.6,2.38174629]
[1758644793429,0.001,4198.7,4198.6,3.9717558]
[1758644793956,0.001,4198.7,4198.6,3.04954629]
[1758644794955,0.001,4198.7,4198.6,7.06454629]
[1758644798328,0.001,4198.7,4198.6,6.83924629]
[1758644798750,0.001,4198.7,4198.6,7.06454629]
[1758644802882,0.001,4198.7,4198.6,21.56454629]
[1758644803078,0.001,4198.7,4198.6,23.95918371]
[1758644810887,0.001,4198.7,4198.6,26.01718371]
[1758644812596,0.001,4198.7,4198.6,19.94418371]
[1758644812795,0.001,4198.7,4198.6,26.01718371]
[1758644813599,0.001,4198.7,4198.6,23.95718371]
[1758644813763,0.001,4198.7,4198.6,26.01718371]
[1758644815078,0.001,4198.7,4198.6,23.95718371]
[1758644817700,0.001,4198.7,4198.6,19.27638371]
[1758644817901,0.6989,4198.7,4198.6,16.88174629]
[1758644818110,0.6989,4198.7,4198.6,20.89374629]
[1758644818269,0.6989,4198.7,4198.6,16.88174629]
[1758644818470,0.6989,4198.7,4198.6,20.89374629]
[1758644819707,0.001,4198.7,4198.6,21.55164629]
[1758644819871,0.001,4198.7,4198.6,23.99448389]
[1758644820504,0.001,4198.7,4198.6,23.56328389]
[1758644820693,0.001,4198.7,4198.6,23.33658389]
[1758644821905,0.001,4198.7,4198.6,26.99448389]
[1758644822108,0.001,4198.7,4198.6,23.99448389]
[1758644822273,0.001,4198.7,4198.6,23.33658389]
[1758644822974,0.001,4198.7,4198.6,23.99448389]
[1758644824804,0.001,4198.7,4198.6,23.56328389]
[1758644825590,0.001,4198.7,4198.6,23.99448389]
[1758644825787,1e-08,4199.0,4198.9,2.38157612]
[1758644825992,1e-08,4199.0,4198.9,8.84430135]
[1758644826214,1e-08,4199.0,4198.9,9.47838559]
[1758644826425,1e-08,4199.0,4198.9,6.39357612]
[1758644826713,1e-08,4199.0,4198.9,20.89357612]
[1758644827837,1e-08,4199.0,4198.9,21.55147612]
[1758644828635,1e-08,4199.0,4198.9,20.89357612]
[1758644829135,0.00100001,4199.0,4198.9,21.55147612]
[1758644829437,0.00100001,4199.0,4198.9,23.99431372]
[1758644830024,0.001,4199.5,4199.4,10.3316321]
[1758644830237,0.001,4199.5,4199.4,14.3426321]
[1758644830542,0.001,4199.5,4199.4,15.0005321]
[1758644830746,0.001,4199.5,4199.4,29.5005321]
[1758644831037,0.001,4199.5,4199.4,31.92744157]
[1758644833933,0.001,4199.5,4199.4,34.92744157]
[1758644834115,0.001,4199.5,4199.4,35.71944157]
[1758644834305,0.001,4199.5,4199.4,35.81488498]
[1758644836180,0.02,4200.9,4199.8,2.38106576]
[1758644836311,0.02,4200.9,4199.8,20.97062596]
[1758644836510,0.02,4200.9,4199.8,21.63802596]
[1758644836848,0.02,4200.9,4199.8,36.13802596]
[1758644839737,0.248,4200.9,4199.8,36.13802596]
[1758644840118,0.02,4200.9,4199.8,31.33502596]
[1758644840324,0.228,4200.7,4199.8,35.34502596]
[1758644840847,0.4289,4200.3,4199.8,17.65728642]
[1758644841068,0.65790001,4199.9,4199.8,16.88106576]
[1758644841206,0.65790001,4199.9,4199.8,20.89106576]
[1758644844061,0.65790001,4199.9,4199.8,16.88106576]
[1758644844258,0.65790001,4199.9,4199.8,20.89106576]
[1758644845159,0.65790001,4199.9,4199.8,6.39106576]
[1758644845558,0.65790001,4199.9,4199.8,20.89106576]
[1758644845959,0.00100001,4199.9,4199.8,20.89106576]
[1758644846530,0.00100001,4199.9,4199.8,20.89006576]